bitfinex/quotes_SOLUSD_20240906
["timestamp","ask_amount","ask_price","bid_price","bid_amount"]
[1725587707048,1.33382641,130.64,130.61,7.6562]
[1725587707243,1.33382641,130.64,130.6,7.6568]
[1725587708777,1.33382641,130.64,130.61,7.6558]
[1725587708974,1.33382641,130.64,130.62,7.6556]
[1725587710447,1.33382641,130.64,130.63,0.56486183]
[1725587710751,1.33382641,130.64,130.63,8.22006183]
[1725587711055,1.33382641,130.64,130.62,17.36532301]
[1725587711648,1.33382641,130.64,130.63,1.5302638]
[1725587712066,1.33382641,130.64,130.62,17.36532301]
[1725587712272,1.33382641,130.64,130.63,7.6552]
[1725587713061,1.33382641,130.64,130.63,8.54327545]
[1725587713553,1.33382641,130.64,130.63,9.18573237]
[1725587714052,1.33382641,130.64,130.63,15.27133237]
[1725587715060,1.33382641,130.64,130.63,52.0168]
[1725587715353,0.8532828,130.7,130.69,7.6516]
[1725587715748,2.18591681,130.7,130.69,7.6516]
[1725587720459,2.18591681,130.7,130.68,19.1298]
[1725587722366,2.18591681,130.7,130.65,19.1342]
[1725587722655,2.18591681,130.7,130.66,7.653]
[1725587723067,2.18591681,130.7,130.67,7.6528]
[1725587723470,2.18591681,130.7,130.68,7.6522]
[1725587724765,2.18591681,130.7,130.67,19.1313]
[1725587725770,2.78113864,130.7,130.67,19.1313]
[1725587727879,7.6518,130.69,130.64,26.7904]
[1725587728067,65.59522183,130.68,130.61,34.2986]
[1725587728266,28.24742183,130.68,130.63,7.6551]
[1725587728575,20.0,130.68,130.63,19.137]
[1725587728964,20.59522183,130.69,130.63,19.137]
[1725587729179,20.59522183,130.69,130.65,7.6538]
[1725587729557,28.24692183,130.69,130.65,7.6538]
[1725587729959,28.24692183,130.69,130.64,7.6545]
[1725587731373,7.6524,130.68,130.64,7.6545]
[1725587731769,0.59522183,130.67,130.63,26.7921]
[1725587731981,7.6535,130.66,130.62,7.6557]
[1725587732281,0.59522183,130.67,130.63,8.15704036]
[1725587732479,0.59522183,130.67,130.63,7.6551]
[1725587732789,28.24812183,130.67,130.63,7.6551]
[1725587733986,8.24812183,130.67,130.63,7.6551]
[1725587736091,1.33343267,130.66,130.63,7.6551]
[1725587736471,8.98703267,130.66,130.62,7.6557]
[1725587736677,0.59522183,130.65,130.62,7.6557]
[1725587737069,8.24932183,130.65,130.61,7.6562]
[1725587737268,0.59522183,130.64,130.61,7.6562]
[1725587739682,8.25022183,130.64,130.6,19.1415]
[1725587739886,65.0,130.63,130.57,19.146]
[1725587740193,65.0,130.63,130.58,8.85853264]
[1725587740194,72.6552,130.63,130.58,8.85853264]
[1725587741696,7.6558,130.62,130.58,8.85853264]
[1725587741880,7.6558,130.62,130.58,7.6578]
[1725587742262,72.6553,130.63,130.58,7.6578]
[1725587743295,72.6553,130.63,130.59,1.53130642]
[1725587743468,8.25102183,130.62,130.57,26.8045]
[1725587743991,45.0,130.61,130.57,26.8045]
[1725587744690,0.59522183,130.6,130.56,7.6592]
[1725587746592,7.6602,130.55,130.5,26.8193]
[1725587746795,53.25572183,130.54,130.5,19.157]
[1725587747008,7.6612,130.53,130.48,7.6638]
[1725587747292,0.59522183,130.52,130.48,7.6638]
[1725587748009,8.25692183,130.52,130.47,26.8254]
[1725587748221,6.1875,130.5,130.43,5.57773493]
[1725587748428,6.1875,130.5,130.4,19.1705]
[1725587748429,45.59522183,130.49,130.4,19.1705]
[1725587748718,0.59522183,130.48,130.4,19.1705]
[1725587748904,8.25932183,130.48,130.42,7.6673]
[1725587749215,65.0,130.47,130.42,7.6673]
[1725587749413,0.59522183,130.46,130.42,7.6673]
[1725587750514,65.0,130.47,130.42,7.6673]
[1725587750728,65.0,130.47,130.43,7.6667]
[1725587751219,0.59522183,130.46,130.43,7.6667]
[1725587751517,65.0,130.47,130.43,7.6667]
[1725587751722,6.1875,130.5,130.42,19.1675]
[1725587752590,20.0,130.49,130.46,7.6651]
[1725587753189,20.59522183,130.51,130.46,7.6651]
[1725587754909,28.25752183,130.51,130.45,26.8299]
[1725587755920,7.6629,130.5,130.45,19.1642]
[1725587756128,73.25872183,130.49,130.42,19.1684]
[1725587756435,0.59522183,130.48,130.42,19.1684]
[1725587758416,7.6649,130.47,130.42,19.1684]
[1725587758593,45.59522183,130.46,130.42,19.1684]
[1725587758798,0.59522183,130.45,130.42,19.1684]
[1725587759199,20.0,130.49,130.42,19.1684]
[1725587759399,45.59522183,130.48,130.43,7.6664]
[1725587759616,20.0,130.47,130.43,7.6664]
[1725587759899,20.0,130.47,130.44,7.6662]
[1725587760318,7.6629,130.5,130.45,7.6656]
[1725587760621,20.59522183,130.49,130.45,7.6656]
[1725587760819,7.6629,130.5,130.46,7.665]
[1725587760820,0.59522183,130.5,130.46,7.665]
[1725587761700,0.59522183,130.5,130.46,6.56152508]
[1725587761902,0.59522183,130.51,130.46,6.56152508]
[1725587762404,20.59522183,130.51,130.46,6.56152508]
[1725587762609,46.33497978,130.5,130.46,6.56152508]
[1725587763109,46.33497978,130.5,130.46,6.33105115]
[1725587763704,0.59522183,130.49,130.46,6.33105115]
[1725587764434,0.59522183,130.49,130.45,19.164]
[1725587765001,20.59522183,130.49,130.45,19.164]
[1725587765220,7.6646,130.47,130.42,19.1688]
[1725587765412,0.59522183,130.46,130.42,19.1688]
[1725587765725,28.26042183,130.46,130.42,19.1688]
[1725587765897,0.59522183,130.45,130.42,19.1688]
[1725587766103,8.26132183,130.45,130.4,7.6686]
[1725587766326,45.0,130.44,130.39,26.8415]
[1725587766627,0.59522183,130.43,130.39,19.1724]
[1725587766801,8.26262183,130.43,130.36,19.1772]
[1725587767010,45.59522183,130.42,130.36,19.1772]
[1725587767202,61.3139,130.44,130.33,44.4669]
[1725587767399,20.0,130.43,130.4,7.6686]
[1725587768538,6.2522,130.46,130.39,19.1731]
[1725587768834,0.59522183,130.47,130.41,19.1695]
[1725587769010,16.90912183,130.48,130.43,19.1665]
[1725587769202,16.90912183,130.48,130.44,7.6662]
[1725587770236,1.33497978,130.5,130.46,7.665]
[1725587770431,1.33497978,130.5,130.43,19.1665]
[1725587770432,0.59522183,130.49,130.45,7.6656]
[1725587770602,0.59522183,130.49,130.45,6.33027324]
[1725587770933,7.6642,130.48,130.43,19.1665]
[1725587771133,0.59522183,130.47,130.43,19.1665]
[1725587771313,16.3139,130.51,130.43,19.1665]
[1725587771314,7.6635,130.49,130.43,19.1665]
[1725587771510,20.59522183,130.48,130.45,7.6654]
[1725587771811,23.9763,130.51,130.44,7.6662]
[1725587771812,1.33523692,130.46,130.44,7.6662]
[1725587773944,1.33523692,130.46,130.4,22.3246]
[1725587773945,1.33523692,130.46,130.4,19.1709]
[1725587774429,1.33523692,130.46,130.42,19.1681]
[1725587774630,1.33523692,130.46,130.43,1.5331385]
[1725587775339,1.33523692,130.46,130.43,9.1999385]
[1725587776821,1.33523692,130.46,130.43,7.6668]
[1725587777417,9.00053692,130.46,130.41,7.668]
[1725587777617,0.59522183,130.45,130.41,7.668]
[1725587777821,45.59522183,130.45,130.41,7.668]
[1725587778442,7.6665,130.44,130.39,26.8414]
[1725587778735,53.26262183,130.43,130.38,7.6698]
[1725587778972,28.26282183,130.42,130.36,26.8473]
[1725587779157,45.0,130.41,130.36,26.8473]
[1725587779449,0.59522183,130.4,130.37,7.6704]
[1725587780229,45.0,130.41,130.36,19.1767]
[1725587780230,0.59522183,130.41,130.36,19.1767]
[1725587780543,45.59522183,130.41,130.36,19.1767]
[1725587781538,45.59522183,130.41,130.37,7.6703]
[1725587781743,45.59522183,130.41,130.38,7.6698]
[1725587781922,0.59522183,130.4,130.38,26.8434]
[1725587782119,0.59522183,130.43,130.38,26.8434]
[1725587782319,0.59522183,130.43,130.34,22.3246]
[1725587782320,7.58743692,130.46,130.4,19.1705]
[1725587782624,1.33523692,130.46,130.42,7.6669]
[1725587783034,1.33523692,130.46,130.42,7.43637604]
[1725587783342,1.33523692,130.46,130.41,26.80683214]
[1725587783343,1.33523692,130.46,130.43,7.6666]
[1725587783641,1.33523692,130.46,130.44,1.53316134]
[1725587783826,1.33523692,130.46,130.45,7.6657]
[1725587785341,1.33523692,130.46,130.44,7.6662]
[1725587785649,1.33523692,130.46,130.43,26.8333]
[1725587785847,1.93045875,130.46,130.43,19.1665]
[1725587786150,1.33523692,130.46,130.43,26.8333]
[1725587786915,1.33523692,130.46,130.45,7.6657]
[1725587792045,1.33523692,130.46,130.45,46.94924588]
[1725587792345,1.33523692,130.46,130.45,53.11003769]
[1725587792844,1.33523692,130.46,130.45,138.61798642]
[1725587793049,1.33523692,130.46,130.45,138.38760076]
[1725587793542,1.33523692,130.46,130.45,147.99072151]
[1725587793852,1.33523692,130.46,130.45,142.40768852]
[1725587794058,1.33523692,130.46,130.45,147.57312195]
[1725587794346,1.33523692,130.46,130.45,50.92954777]
[1725587794552,1.33523692,130.46,130.45,45.35182677]
[1725587794727,1.33523692,130.46,130.45,50.93284552]
[1725587797052,1.33523692,130.46,130.45,45.35182677]
[1725587797254,1.33523692,130.46,130.45,50.93512055]
[1725587797851,1.33523692,130.46,130.45,7.02302677]
[1725587803031,1.33523692,130.46,130.45,8.55562412]
[1725587804254,1.33523692,130.46,130.45,7.02302677]
[1725587805137,1.33523692,130.46,130.45,8.5557261]
[1725587805744,1.33523692,130.46,130.45,8.55561634]
[1725587806253,2.86223976,130.56,130.51,26.8178]
[1725587806446,16.44642183,130.57,130.54,7.6604]
[1725587806833,1.33432497,130.56,130.54,7.6604]
[1725587809943,0.59522183,130.55,130.54,7.6604]
[1725587810144,46.33432497,130.56,130.54,7.6604]
[1725587810346,1.33432497,130.56,130.54,7.6604]
[1725587820563,1.33432497,130.56,130.55,7.6599]
[1725587821244,0.59522183,130.58,130.55,7.6599]
[1725587822041,45.59522183,130.58,130.55,7.6599]
[1725587822566,53.25332183,130.58,130.53,19.1516]
[1725587822749,53.25332183,130.58,130.53,26.8122]
[1725587823160,53.25332183,130.58,130.54,7.6603]
[1725587823344,53.25332183,130.58,130.53,19.1516]
[1725587823345,45.59522183,130.58,130.55,7.6598]
[1725587825472,20.0,130.59,130.56,7.6592]
[1725587825766,20.59522183,130.59,130.56,7.6592]
[1725587825958,20.0,130.59,130.56,7.6592]
[1725587828280,6.94022183,130.6,130.57,7.6585]
[1725587828981,6.94022183,130.6,130.56,7.6592]
[1725587829172,45.0,130.59,130.56,7.6592]
[1725587829385,0.59522183,130.58,130.56,7.6592]
[1725587830978,0.59522183,130.58,130.55,26.809]
[1725587831180,1.92945531,130.58,130.55,26.809]
[1725587831885,0.59522183,130.57,130.55,19.1493]
[1725587833084,8.25432183,130.57,130.52,26.8146]
[1725587833289,65.0,130.56,130.52,26.8146]
[1725587833473,0.59522183,130.55,130.52,26.8146]
[1725587833673,20.59522183,130.55,130.52,26.8146]
[1725587834009,0.59522183,130.54,130.5,7.6627]
[1725587834193,45.59522183,130.54,130.5,7.6627]
[1725587835260,53.25572183,130.54,130.49,26.821]
[1725587835457,0.59522183,130.54,130.53,7.661]
[1725587835677,0.59522183,130.57,130.5,54.171]
[1725587836480,0.59522183,130.57,130.53,19.152]
[1725587836800,0.59522183,130.57,130.54,7.6604]
[1725587837158,1.92945531,130.58,130.54,7.6604]
[1725587837592,21.92945531,130.58,130.54,7.6604]
[1725587839013,45.59522183,130.57,130.54,7.6604]
[1725587840186,45.0,130.57,130.54,7.6604]
[1725587840388,21.92945531,130.58,130.55,7.6598]
[1725587841289,1.33423348,130.58,130.55,7.6598]
[1725587841469,46.33423348,130.58,130.55,7.6598]
[1725587842282,0.59522183,130.57,130.55,7.6598]
[1725587842978,46.92945531,130.58,130.55,7.6598]
[1725587843278,1.92945531,130.58,130.55,7.6598]
[1725587843487,46.92945531,130.58,130.55,7.6598]
[1725587844199,1.92945531,130.58,130.55,7.6598]
[1725587845068,1.33423348,130.58,130.56,7.6592]
[1725587845271,1.33423348,130.58,130.57,7.6587]
[1725587847772,1.92945531,130.58,130.56,7.6591]
[1725587848089,1.92945531,130.58,130.55,17.81441613]
[1725587848304,1.33423348,130.58,130.55,17.81441613]
[1725587849387,1.33423348,130.58,130.56,7.6592]
[1725587851792,45.59522183,130.59,130.56,7.6592]
[1725587854781,1.33409868,130.58,130.56,7.6592]
[1725587856988,1.33409868,130.58,130.53,5.57718318]
[1725587857301,7.6594,130.56,130.47,59.6905]
[1725587857473,1.33409868,130.58,130.5,38.3119]
[1725587857680,1.33409868,130.58,130.51,5.57559998]
[1725587857898,1.33409868,130.58,130.52,20.80629998]
[1725587858194,1.33409868,130.58,130.56,7.6589]
[1725587860878,1.33409868,130.58,130.55,26.8089]
[1725587864883,0.59522183,130.57,130.53,5.57295849]
[1725587865081,0.59522183,130.57,130.52,26.8147]
[1725587865082,8.25402183,130.57,130.52,26.8147]
[1725587865284,0.59522183,130.57,130.53,7.661]
[1725587865487,45.59522183,130.57,130.52,26.8152]
[1725587865888,20.0,130.56,130.52,19.1536]
[1725587866220,45.59522183,130.55,130.52,17.81893319]
[1725587866699,0.59522183,130.55,130.52,25.48033319]
[1725587870689,45.59522183,130.55,130.52,25.48033319]
[1725587871402,20.0,130.56,130.53,7.6609]
[1725587871583,20.59522183,130.56,130.53,7.6609]
[1725587872715,15.64399868,130.58,130.53,7.6609]
[1725587872716,20.59522183,130.57,130.53,7.6609]
[1725587873011,20.0,130.57,130.55,7.6593]
[1725587873179,1.33409868,130.58,130.55,7.6593]
[1725587873378,1.33409868,130.58,130.54,19.1504]
[1725587873379,1.33409868,130.58,130.54,26.8108]
[1725587873575,21.33409868,130.58,130.54,26.8108]
[1725587874485,0.59522183,130.57,130.54,26.8108]
[1725587875186,1.33423494,130.56,130.54,26.8108]
[1725587878702,1.33423494,130.56,130.54,19.1504]
[1725587879412,1.33423494,130.56,130.53,7.661]
[1725587880489,1.33423494,130.56,130.51,19.1546]
[1725587880696,1.33423494,130.56,130.48,24.68023597]
[1725587880697,16.95902183,130.55,130.48,34.2381]
[1725587880884,0.59522183,130.54,130.48,32.90339439]
[1725587881079,45.59522183,130.54,130.48,32.90339439]
[1725587881699,45.59522183,130.54,130.5,7.6623]
[1725587884608,53.25562183,130.54,130.5,7.6623]
[1725587884814,20.0,130.53,130.48,19.159]
[1725587885893,0.59522183,130.52,130.48,19.159]
[1725587886097,45.59522183,130.52,130.48,19.159]
[1725587886511,45.59522183,130.52,130.48,26.8225]
[1725587887692,24.0237,130.55,130.5,19.1565]
[1725587887894,16.3638,130.55,130.5,19.1565]
[1725587888198,20.0,130.54,130.51,7.6618]
[1725587888598,16.3638,130.55,130.52,7.6615]
[1725587888810,16.3638,130.55,130.52,9.06806213]
[1725587889025,16.3638,130.55,130.53,7.661]
[1725587889516,1.92945677,130.56,130.53,7.661]
[1725587889697,1.33423494,130.56,130.54,9.06993288]
[1725587890199,1.33423494,130.56,130.54,7.6604]
[1725587894311,1.33423494,130.56,130.52,19.1535]
[1725587894520,1.33423494,130.56,130.54,7.6604]
[1725587894693,1.33423494,130.56,130.55,7.6599]
[1725587895409,1.33423494,130.56,130.55,8.11397149]
[1725587895593,1.33423494,130.56,130.55,7.6599]
[1725587896015,0.59522183,130.61,130.57,26.8048]
[1725587897420,45.59522183,130.61,130.57,26.8048]
[1725587897627,20.0,130.6,130.57,26.8048]
[1725587898911,1.33388011,130.59,130.57,26.8048]
[1725587899703,1.33388011,130.59,130.57,19.1467]
[1725587900323,46.33388011,130.59,130.55,7.6598]
[1725587900503,54.58660194,130.59,130.55,6.32551416]
[1725587902218,1.33388011,130.59,130.58,7.6581]
[1725587907423,1.33388011,130.59,130.57,7.6586]
[1725587907622,1.33388011,130.59,130.57,6.32464253]
[1725587907809,27.6563,130.61,130.57,6.32464253]
[1725587908015,7.6563,130.61,130.57,6.32464253]
[1725587908317,7.6563,130.61,130.57,7.85615716]
[1725587908926,1.33393453,130.6,130.57,7.85615716]
[1725587909626,1.33393453,130.6,130.58,9.18961321]
[1725587909933,1.33393453,130.6,130.59,7.6575]
[1725587910443,1.33393453,130.6,130.59,42.54570997]
[1725587914610,1.33393453,130.6,130.59,29.6024]
[1725587920137,1.33393453,130.6,130.59,7.6575]
[1725587938625,1.33393453,130.6,130.59,8.5427403]
[1725587938956,1.33393453,130.6,130.59,9.18865429]
[1725587940824,1.33393453,130.6,130.59,7.6575]
[1725587941420,1.33393453,130.6,130.59,9.18866288]
[1725587942140,1.33393453,130.6,130.59,7.6575]
[1725587944348,1.33393453,130.6,130.59,8.29462343]
[1725587948052,1.33393453,130.6,130.59,9.18863907]
[1725587948244,1.33393453,130.6,130.59,7.6575]
[1725587951734,1.33393453,130.6,130.58,26.8029]
[1725587951942,1.33393453,130.6,130.58,19.145]
[1725587952254,1.92915636,130.6,130.58,19.145]
[1725587953552,1.33393453,130.6,130.58,26.8029]
[1725587954739,1.33393453,130.6,130.59,9.18899683]
[1725587954948,1.33393453,130.6,130.59,7.6575]
[1725587955257,1.33393453,130.6,130.59,9.18869052]
[1725587956861,1.33393453,130.6,130.59,7.6575]
[1725587961142,1.33393453,130.6,130.59,9.18809869]
[1725587964161,1.33393453,130.6,130.59,18.78309596]
[1725587964844,1.33393453,130.6,130.59,9.18809869]
[1725587965273,1.33393453,130.6,130.59,7.6575]
[1725587965570,1.33393453,130.6,130.59,17.25188384]
[1725587966143,1.33393453,130.6,130.59,7.6575]
[1725587968668,1.33393453,130.6,130.59,9.18850859]
[1725587970047,1.33393453,130.6,130.59,7.6575]
[1725587988970,1.33393453,130.6,130.59,8.68839829]
[1725587990198,1.33393453,130.6,130.59,7.6575]
[1725587997884,1.33393453,130.6,130.59,9.18860345]
[1725587998398,1.33393453,130.6,130.59,7.6575]
[1725587998769,1.33393453,130.6,130.59,9.18869169]
[1725587999884,0.59522183,130.64,130.61,7.6563]
[1725588000079,45.59522183,130.64,130.61,7.6563]
[1725588001774,45.59522183,130.64,130.58,1.53118412]
[1725588001979,27.6556,130.63,130.58,7.6575]
[1725588002283,0.59522183,130.63,130.6,7.6565]
[1725588002490,15.8712,130.65,130.54,51.24280997]
[1725588002491,15.8712,130.65,130.61,1.53121303]
[1725588002682,16.2779,130.68,130.64,7.6541]
[1725588002883,0.59522183,130.67,130.64,7.6541]
[1725588003288,1.92840694,130.67,130.64,9.18441245]
[1725588004137,21.92840694,130.67,130.64,7.6541]
[1725588005214,21.92840694,130.67,130.61,7.6562]
[1725588005380,23.9331,130.63,130.58,7.6581]
[1725588005709,45.59522183,130.62,130.58,6.3242394]
[1725588005902,45.59522183,130.62,130.6,7.6568]
[1725588006199,16.2779,130.63,130.61,7.6563]
[1725588007384,16.2779,130.63,130.62,7.6557]
[1725588007589,16.2779,130.63,130.61,26.7963]
[1725588007788,16.87312183,130.63,130.59,13.22818095]
[1725588008000,16.87312183,130.63,130.59,7.657]
[1725588008216,7.656,130.62,130.58,19.1446]
[1725588008403,16.87312183,130.63,130.58,19.1446]
[1725588009316,16.87312183,130.63,130.59,7.6574]
[1725588010222,16.87312183,130.63,130.58,19.1446]
[1725588010517,72.6562,130.62,130.58,19.1446]
[1725588010818,8.25162183,130.61,130.56,7.6591]
[1725588010994,45.59522183,130.6,130.57,7.6587]
[1725588011190,0.59522183,130.61,130.58,7.6578]
[1725588011387,45.0,130.61,130.58,7.6578]
[1725588012490,0.59522183,130.6,130.57,26.8046]
[1725588013625,0.59522183,130.6,130.57,25.47072243]
[1725588013797,45.59522183,130.61,130.57,25.47072243]
[1725588013996,45.59522183,130.61,130.58,7.658]
[1725588014898,27.6561,130.62,130.57,17.81202243]
[1725588014899,20.0,130.62,130.57,17.81202243]
[1725588015214,16.2779,130.63,130.61,7.6562]
[1725588016622,16.2779,130.63,130.61,6.32255482]
[1725588017804,7.6541,130.65,130.61,6.32255482]
[1725588018015,20.0,130.64,130.61,6.32255482]
[1725588018207,20.0,130.64,130.62,7.6557]
[1725588018413,16.56232183,130.66,130.63,7.6551]
[1725588018739,20.0,130.65,130.63,7.6551]
[1725588019624,20.0,130.65,130.62,7.6557]
[1725588019827,20.59522183,130.65,130.62,7.6557]
[1725588021115,20.0,130.65,130.63,7.655]
[1725588021928,15.9671,130.66,130.64,7.6546]
[1725588022842,15.9671,130.66,130.63,26.7925]
[1725588023824,45.0,130.65,130.6,19.1415]
[1725588024041,0.59522183,130.64,130.61,7.6559]
[1725588024737,20.59522183,130.64,130.61,7.6559]
[1725588025939,20.59522183,130.64,130.57,19.146]
[1725588026234,52.6552,130.63,130.59,7.6575]
[1725588026451,20.59522183,130.62,130.59,7.6575]
[1725588027439,20.59522183,130.62,130.58,7.6579]
[1725588027621,45.0,130.61,130.58,7.6579]
[1725588027947,0.59522183,130.6,130.58,7.6579]
[1725588028414,45.59522183,130.61,130.58,7.6579]
[1725588031423,0.59522183,130.6,130.57,26.8045]
[1725588033747,20.0,130.62,130.57,19.146]
[1725588033923,20.0,130.62,130.6,7.6569]
[1725588034155,0.59522183,130.63,130.6,7.6569]
[1725588034323,0.59522183,130.63,130.59,26.8007]
[1725588034527,20.59522183,130.63,130.59,19.1433]
[1725588034725,7.6564,130.61,130.56,19.1474]
[1725588034941,28.25232183,130.6,130.56,26.8065]
[1725588035643,45.0,130.59,130.56,26.8065]
[1725588035945,45.59522183,130.59,130.56,26.8065]
[1725588039518,45.59522183,130.59,130.55,7.6597]
[1725588042737,20.0,130.6,130.56,7.659]
[1725588042927,20.59522183,130.6,130.56,7.659]
[1725588044427,28.25262183,130.6,130.55,26.8088]
[1725588044627,45.0,130.59,130.55,26.8088]
[1725588044828,0.59522183,130.59,130.56,7.6592]
[1725588045036,0.59522183,130.59,130.55,26.8088]
[1725588045237,45.59522183,130.59,130.55,26.8088]
[1725588045640,20.0,130.6,130.56,7.6591]
[1725588045846,0.59522183,130.6,130.56,7.6591]
[1725588046032,45.59522183,130.6,130.56,7.6591]
[1725588046237,20.0,130.59,130.56,7.6591]
[1725588050052,0.59522183,130.58,130.55,26.8087]
[1725588051033,0.59522183,130.58,130.55,19.149]
[1725588051232,7.6588,130.57,130.52,26.8143]
[1725588051449,45.59522183,130.56,130.52,26.8143]
[1725588052953,45.59522183,130.56,130.5,7.6622]
[1725588052954,7.6601,130.55,130.5,7.6622]
[1725588053152,7.6601,130.55,130.49,19.1581]
[1725588053153,45.59522183,130.54,130.51,7.6622]
[1725588054648,45.59522183,130.54,130.5,7.6626]
[1725588054843,53.25572183,130.54,130.49,26.8214]
[1725588055151,20.0,130.53,130.46,410.362]
[1725588055363,45.59522183,130.52,130.46,410.362]
[1725588055667,0.59522183,130.51,130.46,410.362]
[1725588056267,0.59522183,130.51,130.48,7.6638]
[1725588059867,0.59522183,130.51,130.46,19.162]
[1725588059868,0.59522183,130.51,130.47,7.6644]
[1725588060262,6.89502183,130.51,130.43,19.1663]
[1725588060477,7.664,130.48,130.43,26.8328]
[1725588060687,0.59522183,130.47,130.43,19.1663]
[1725588060982,45.0,130.47,130.43,19.1663]
[1725588061559,0.59522183,130.46,130.43,19.1663]
[1725588064599,6.2998,130.45,130.4,26.8399]
[1725588064769,45.59522183,130.44,130.4,26.8399]
[1725588065273,45.59522183,130.44,130.4,19.1713]
[1725588065675,45.59522183,130.44,130.4,26.8398]
[1725588066189,53.26172183,130.44,130.4,19.1713]
[1725588066483,27.667,130.43,130.38,7.6697]
[1725588066693,45.59522183,130.42,130.38,7.6697]
[1725588066993,27.667,130.43,130.37,19.1758]
[1725588066994,20.59522183,130.43,130.37,19.1758]
[1725588067191,0.59522183,130.43,130.37,19.1758]
[1725588067392,20.59522183,130.44,130.4,7.6686]
[1725588068690,45.0,130.43,130.4,7.6686]
[1725588069395,16.4358,130.47,130.43,7.6667]
[1725588069582,20.59522183,130.46,130.41,19.1694]
[1725588069787,20.59522183,130.46,130.41,26.8374]
[1725588069788,0.59522183,130.45,130.41,26.8374]
[1725588069978,8.26102183,130.45,130.41,19.1694]
[1725588070289,8.26102183,130.45,130.39,7.6691]
[1725588070290,7.6663,130.44,130.39,7.6691]
[1725588070495,28.26212183,130.43,130.39,7.6691]
[1725588070697,0.59522183,130.42,130.38,26.8436]
[1725588070888,16.4358,130.41,130.38,26.8436]
[1725588071192,0.59522183,130.4,130.38,26.8436]
[1725588071701,0.59522183,130.4,130.38,19.1739]
[1725588071892,45.59522183,130.4,130.38,19.1739]
[1725588072099,0.59522183,130.39,130.38,19.1739]
[1725588072287,16.4358,130.41,130.38,26.8437]
[1725588073799,45.59522183,130.4,130.38,19.1739]
[1725588074098,0.59522183,130.39,130.38,19.1739]
[1725588075190,0.59522183,130.39,130.37,7.6703]
[1725588075795,0.59522183,130.39,130.32,19.1833]
[1725588076000,7.6709,130.37,130.32,26.8563]
[1725588076201,65.59522183,130.36,130.32,26.8563]
[1725588076396,0.59522183,130.35,130.32,26.8563]
[1725588076694,0.59522183,130.35,130.32,19.1833]
[1725588077316,17.03102183,130.35,130.3,7.674]
[1725588077596,45.0,130.34,130.3,7.674]
[1725588077799,0.59522183,130.33,130.3,7.674]
[1725588078106,45.0,130.34,130.31,7.6739]
[1725588078310,0.59522183,130.34,130.31,7.6739]
[1725588078518,0.59522183,130.34,130.29,19.1872]
[1725588078691,73.26742183,130.34,130.29,19.1872]
[1725588079009,65.59522183,130.34,130.3,7.6745]
[1725588079882,73.26742183,130.34,130.29,26.8622]
[1725588083107,65.59522183,130.34,130.3,7.6744]
[1725588084497,65.59522183,130.34,130.31,7.6738]
[1725588086587,73.26772183,130.34,130.29,26.8619]
[1725588086991,65.59522183,130.34,130.3,7.6741]
[1725588088007,65.59522183,130.34,130.26,391.2]
[1725588088008,7.6742,130.31,130.26,410.3916]
[1725588088311,7.6742,130.31,130.26,418.068]
[1725588088312,45.59522183,130.3,130.26,418.068]
[1725588088505,0.59522183,130.29,130.26,418.068]
[1725588088715,0.59522183,130.29,130.26,410.3916]
[1725588088893,0.59522183,130.29,130.26,418.0684]
[1725588091608,0.59522183,130.29,130.27,7.6762]
[1725588091815,7.6735,130.32,130.28,7.6757]
[1725588092013,20.59522183,130.31,130.28,7.6757]
[1725588092310,20.59522183,130.31,130.27,7.6762]
[1725588093522,28.26932183,130.31,130.27,7.6762]
[1725588093692,0.59522183,130.3,130.27,7.6762]
[1725588095487,20.59522183,130.31,130.27,7.6762]
[1725588096013,20.0,130.31,130.28,19.1888]
[1725588096206,20.59522183,130.32,130.28,19.1888]
[1725588097518,20.59522183,130.32,130.29,7.6749]
[1725588098717,0.59522183,130.34,130.31,7.674]
[1725588098891,65.59522183,130.34,130.3,26.8605]
[1725588099517,20.59522183,130.34,130.31,7.6739]
[1725588099923,20.59522183,130.34,130.3,26.8606]
[1725588099924,28.26742183,130.34,130.3,26.8606]